bitfinex-derivatives/quotes_SOLF0:USTF0_20240902
["timestamp","ask_amount","ask_price","bid_price","bid_amount"]
[1725302844060,28.97,132.58,132.52,3.773]
[1725302844262,0.05057115,132.56,132.53,0.04834796]
[1725302845357,29.02057115,132.56,132.53,0.04834796]
[1725302845755,29.02057115,132.56,132.54,3.7723]
[1725302845756,0.05057115,132.56,132.54,3.7723]
[1725302846156,0.05057115,132.56,132.53,0.04834796]
[1725302846361,0.05057115,132.56,132.55,3.7723]
[1725302847562,0.05057115,132.56,132.53,3.82104796]
[1725302850158,0.05057115,132.56,132.53,0.04834796]
[1725302850655,36.24,132.55,132.53,0.04834796]
[1725302851252,39.936341,132.55,132.53,0.04834796]
[1725302851858,0.05057115,132.56,132.53,0.04834796]
[1725302852659,3.82257115,132.56,132.53,0.04834796]
[1725302853260,3.7724,132.55,132.53,0.04834796]
[1725302855462,3.7726,132.54,132.53,0.04834796]
[1725302855668,36.29057115,132.56,132.53,0.04834796]
[1725302856062,3.7724,132.55,132.53,0.04834796]
[1725302856562,40.06267115,132.56,132.53,0.04834796]
[1725302856764,0.05057115,132.56,132.53,0.04834796]
[1725302857169,0.05057115,132.56,132.54,3.7724]
[1725302857469,0.05057115,132.56,132.53,0.04834796]
[1725302857857,0.05057115,132.56,132.54,3.7724]
[1725302858468,0.05057115,132.56,132.53,0.04834796]
[1725302859470,0.05057115,132.56,132.55,3.7723]
[1725302859773,190.12847911,132.87,132.51,4.1377]
[1725302859774,10.93397093,132.72,132.54,36.24]
[1725302860065,36.24,132.68,132.58,36.24]
[1725302860265,36.24,132.68,132.59,2.8122]
[1725302860564,2.9039,132.71,132.67,3.7687]
[1725302860565,3.82082715,132.71,132.67,3.7687]
[1725302860761,3.7674,132.73,132.68,0.04796196]
[1725302860962,0.04800178,132.7,132.68,0.04796196]
[1725302861666,3.8363851,132.7,132.68,0.04796196]
[1725302862465,0.04800178,132.7,132.68,0.04796196]
[1725302863163,0.04800178,132.7,132.59,2.8122]
[1725302863164,36.28800178,132.7,132.59,2.8122]
[1725302863376,36.24,132.68,132.59,2.8122]
[1725302863669,36.24,132.65,132.59,2.8122]
[1725302864168,0.04982344,132.63,132.61,0.04782886]
[1725302864367,0.04982344,132.63,132.61,3.81822886]
[1725302866465,36.24,132.68,132.62,3.7703]
[1725302866766,3.0568,132.71,132.59,2.8122]
[1725302866767,36.24,132.7,132.64,3.7695]
[1725302867068,3.7685,132.69,132.64,3.7695]
[1725302867267,3.7685,132.69,132.65,0.05687563]
[1725302867460,0.05107483,132.68,132.65,0.05687563]
[1725302867873,0.05107483,132.68,132.65,3.82617563]
[1725302868064,0.05107483,132.68,132.65,0.05687563]
[1725302868375,0.05107483,132.68,132.66,3.769]
[1725302868568,0.05107483,132.68,132.65,0.05687563]
[1725302868873,0.05107483,132.68,132.67,3.7689]
[1725302870168,0.05107483,132.68,132.65,1.49927563]
[1725302871271,0.05107483,132.68,132.65,5.26857563]
[1725302872571,36.29107483,132.68,132.65,0.05687563]
[1725302873272,3.769,132.67,132.65,0.05687563]
[1725302875577,3.7692,132.66,132.65,0.05687563]
[1725302876567,36.29107483,132.68,132.65,0.05687563]
[1725302877380,40.05977483,132.68,132.65,3.82617563]
[1725302877774,0.05107483,132.68,132.65,0.05687563]
[1725302877971,0.05107483,132.68,132.66,3.769]
[1725302882080,0.05107483,132.68,132.65,3.82617563]
[1725302882279,0.05107483,132.68,132.65,0.05687563]
[1725302882483,36.29107483,132.68,132.65,0.05687563]
[1725302882788,40.05987483,132.68,132.65,0.05687563]
[1725302883686,3.7689,132.67,132.65,0.05687563]
[1725302885887,36.29107483,132.68,132.65,0.05687563]
[1725302885888,0.05107483,132.68,132.65,0.05687563]
[1725302887091,0.05107483,132.68,132.67,3.7689]
[1725302889494,36.24,132.72,132.68,3.7684]
[1725302890394,0.04835295,132.71,132.69,0.05801198]
[1725302891196,3.81625295,132.71,132.69,0.05801198]
[1725302891492,7.56521474,132.71,132.69,0.05801198]
[1725302891891,3.79731474,132.71,132.69,3.82631198]
[1725302892691,7.56511474,132.71,132.69,3.82631198]
[1725302893798,7.56511474,132.71,132.69,0.05801198]
[1725302894594,3.79731474,132.71,132.69,3.82631198]
[1725302894988,0.04835295,132.71,132.69,0.05801198]
[1725302896189,0.04835295,132.71,132.7,3.768]
[1725302896396,0.04835295,132.71,132.69,0.05801198]
[1725302896996,0.04835295,132.71,132.7,3.768]
[1725302897701,0.04835295,132.71,132.69,0.05801198]
[1725302898605,0.04835295,132.71,132.7,3.768]
[1725302903002,0.04835295,132.71,132.69,3.82621198]
[1725302905501,0.04835295,132.71,132.7,3.768]
[1725302908205,232.53,132.82,132.69,0.05801198]
[1725302908409,28.93,132.79,132.7,28.93]
[1725302908603,3.766,132.78,132.71,5.22471149]
[1725302908904,32.65579308,132.79,132.71,6.56841149]
[1725302909411,0.04818192,132.76,132.74,0.0515835]
[1725302910209,3.7666,132.75,132.74,0.0515835]
[1725302910606,3.81468192,132.76,132.74,0.0515835]
[1725302912005,3.81468192,132.76,132.74,3.8184835]
[1725302912602,3.81468192,132.76,132.74,0.0515835]
[1725302913008,0.04818192,132.76,132.74,0.0515835]
[1725302913307,0.04818192,132.76,132.75,3.7666]
[1725302913611,3.7655,132.8,132.74,28.93]
[1725302914001,28.93,132.83,132.76,3.7661]
[1725302914213,28.93,132.83,132.74,28.93]
[1725302914714,28.93,132.83,132.78,3.7656]
[1725302914916,28.93,132.79,132.77,0.05265667]
[1725302915515,3.7658,132.78,132.77,0.05265667]
[1725302915717,7.54546229,132.78,132.77,0.05265667]
[1725302916620,28.93,132.79,132.67,3.81620079]
[1725302916915,28.93,132.74,132.66,31.7743]
[1725302917121,32.6971,132.74,132.67,3.79266179]
[1725302917312,32.6971,132.74,132.71,3.7677]
[1725302917509,32.75082369,132.74,132.71,3.7677]
[1725302917828,36.4632474,132.74,132.71,3.82477869]
[1725302918117,3.7675,132.72,132.71,0.05707869]
[1725302918315,7.47615667,132.72,132.71,0.05707869]
[1725302918511,3.7675,132.72,132.71,0.05707869]
[1725302918712,7.47502655,132.72,132.71,0.05707869]
[1725302920020,43.63502655,132.72,132.71,0.05707869]
[1725302922424,3.7681,132.7,132.66,1.4591]
[1725302923426,0.05153553,132.69,132.67,0.05599831]
[1725302924026,0.05153553,132.69,132.68,3.7686]
[1725302926133,0.05153553,132.69,132.67,3.82479831]
[1725302928448,0.05153553,132.69,132.67,0.05599831]
[1725302930245,0.05153553,132.69,132.67,3.82479831]
[1725302930937,3.81993553,132.69,132.67,0.05599831]
[1725302932046,0.05153553,132.69,132.67,0.05599831]
[1725302933843,0.05153553,132.69,132.67,3.82489831]
[1725302939948,0.05153553,132.69,132.68,3.7686]
[1725302943452,0.05153553,132.69,132.67,3.82469831]
[1725302943950,3.81983553,132.69,132.67,3.82469831]
[1725302946642,0.05153553,132.69,132.67,0.05599831]
[1725302946848,3.73577511,132.73,132.67,0.05599831]
[1725302947047,3.73577511,132.73,132.67,2.80089831]
[1725302947247,3.73577511,132.73,132.69,3.7682]
[1725302947549,28.93,132.74,132.69,3.7682]
[1725302947751,3.7674,132.73,132.67,2.7449]
[1725302948054,0.05523383,132.71,132.7,3.7679]
[1725302953362,28.93,132.77,132.69,3.77510443]
[1725302953554,28.93,132.77,132.7,1.3717]
[1725302953859,3.7659,132.78,132.74,3.7668]
[1725302954058,28.93,132.79,132.7,5.18038465]
[1725302954263,28.93,132.79,132.71,28.93]
[1725302954264,3.70619531,132.78,132.71,28.93]
[1725302954455,225.0,132.83,132.71,28.93]
[1725302954456,28.93,132.81,132.77,3.7659]
[1725302954658,28.93,132.81,132.73,28.97760246]
[1725302954954,3.7653,132.8,132.73,28.97760246]
[1725302955159,3.7653,132.8,132.73,28.93]
[1725302955362,0.05359567,132.78,132.75,0.04949187]
[1725302955753,0.05359567,132.78,132.77,3.766]
[1725302957463,32.6944,132.83,132.79,3.7654]
[1725302958362,0.05333486,132.82,132.8,0.04975935]
[1725302961553,32.6949,132.81,132.8,0.04975935]
[1725302961864,28.93,132.81,132.72,1.3381]
[1725302962059,28.93,132.79,132.72,1.3381]
[1725302962258,32.61259713,132.79,132.72,1.3381]
[1725302962453,3.68259713,132.79,132.72,1.3381]
[1725302962659,3.68259713,132.79,132.73,1.4128]
[1725302962963,0.05399373,132.77,132.74,0.0578428]
[1725302963762,0.05399373,132.77,132.76,3.7661]
[1725302964366,0.05399373,132.77,132.74,0.0578428]
[1725302965262,0.05399373,132.77,132.75,3.7665]
[1725302965465,0.05399373,132.77,132.74,0.0578428]
[1725302966055,0.05399373,132.77,132.76,3.7663]
[1725302969371,3.7654,132.8,132.76,3.7663]
[1725302970463,0.04828396,132.79,132.77,0.05364195]
[1725302972269,0.04828396,132.79,132.77,3.81964195]
[1725302972964,7.55493992,132.79,132.77,0.05364195]
[1725302973972,19.12493992,132.79,132.77,0.05364195]
[1725302977772,15.35933992,132.79,132.77,0.05364195]
[1725302977969,15.35933992,132.79,132.77,3.81964195]
[1725302978677,19.12483992,132.79,132.77,3.81964195]
[1725302978875,19.12483992,132.79,132.77,0.05364195]
[1725302990785,19.12483992,132.79,132.77,3.81954195]
[1725302990786,0.04828396,132.79,132.77,3.81954195]
[1725302991385,0.04828396,132.79,132.78,3.7658]
[1725302992987,11.57,132.85,132.78,12.9008]
[1725302993290,3.7641,132.84,132.78,12.9008]
[1725302993485,3.7641,132.84,132.8,3.765]
[1725302993888,0.05325682,132.83,132.81,0.04764238]
[1725302994581,0.05325682,132.83,132.81,3.81254238]
[1725302995889,0.05325682,132.83,132.81,0.04764238]
[1725302996389,3.81765682,132.83,132.81,0.04764238]
[1725303000590,3.7900791,132.83,132.74,16.76247108]
[1725303000791,11.57,132.82,132.76,11.57]
[1725303000994,449.71418031,132.95,132.81,11.57]
[1725303001290,3.79292168,132.9,132.84,11.57]
[1725303001495,0.05372918,132.88,132.86,0.0563799]
[1725303001692,3.81739457,132.9,132.84,11.57]
[1725303001897,0.05308769,132.88,132.86,11.62616932]
[1725303002098,0.05308769,132.88,132.87,3.763]
[1725303002297,0.05308769,132.88,132.86,0.05616932]
[1725303005200,11.62308769,132.88,132.86,0.05616932]
[1725303005692,15.38618769,132.88,132.86,0.05616932]
[1725303008096,3.7632,132.87,132.86,0.05616932]
[1725303010007,3.7632,132.87,132.73,46.28]
[1725303010008,3.7642,132.84,132.78,11.57]
[1725303010207,15.3342,132.84,132.78,11.57]
[1725303010914,0.05208621,132.82,132.8,0.05086599]
[1725303011509,0.05208621,132.82,132.8,3.81586599]
[1725303011806,3.764,132.85,132.81,3.7648]
[1725303012111,11.57,132.86,132.78,11.57]
[1725303012406,3.7642,132.84,132.8,3.765]
[1725303012904,0.04995015,132.83,132.81,0.05560608]
[1725303013807,0.04995015,132.83,132.81,3.82050608]
[1725303015406,0.04995015,132.83,132.82,3.7646]
[1725303015806,3.81739457,132.9,132.81,11.57]
[1725303016004,3.7629,132.88,132.83,11.57]
[1725303016207,11.57,132.89,132.83,11.57]
[1725303016413,15.3326,132.89,132.85,3.7636]
[1725303016614,11.57,132.91,132.84,11.57]
[1725303017110,3.8138979,132.89,132.86,0.05503026]
[1725303018408,3.8138979,132.89,132.86,3.81853026]
[1725303018609,3.8138979,132.89,132.86,0.05503026]
[1725303018815,15.3838979,132.89,132.86,0.05503026]
[1725303019313,3.7629,132.88,132.86,0.05503026]
[1725303020621,15.3839979,132.89,132.86,0.05503026]
[1725303020921,11.6211979,132.89,132.86,0.05503026]
[1725303021111,3.7631,132.88,132.86,0.05503026]
[1725303021615,3.7632,132.87,132.86,0.05503026]
[1725303021814,11.57,132.87,132.79,11.57]
[1725303022012,11.57,132.85,132.8,3.765]
[1725303022312,15.3339,132.85,132.79,11.57]
[1725303022518,19.0250947,132.85,132.79,11.57]
[1725303022916,0.0546486,132.83,132.81,3.82054279]
[1725303024724,0.0546486,132.83,132.82,3.7646]
[1725303025720,0.0546486,132.83,132.81,3.82064279]
[1725303027629,0.0546486,132.83,132.81,0.05584279]
[1725303027834,3.8191486,132.83,132.81,0.05584279]
[1725303028322,0.0546486,132.83,132.81,0.05584279]
[1725303029126,15.3346,132.82,132.81,0.05584279]
[1725303029322,15.39180802,132.82,132.73,15.39180802]
[1725303029626,3.82180802,132.82,132.74,11.57]
[1725303029816,11.57,132.82,132.76,11.57]
[1725303030016,3.67969279,132.81,132.76,12.9381]
[1725303030221,3.67969279,132.81,132.78,3.7656]
[1725303030419,0.05785072,132.8,132.78,3.7656]
[1725303038830,0.8548,132.9,132.78,11.57]
[1725303039036,11.57,132.87,132.81,11.57]
[1725303039242,3.83057228,132.86,132.82,3.7645]
[1725303039435,3.83057228,132.86,132.81,11.57]
[1725303040035,0.05398806,132.85,132.82,0.05609593]
[1725303041041,0.05398806,132.85,132.83,3.7642]
[1725303049640,0.05398806,132.85,132.82,0.05609593]
[1725303049641,3.7641,132.84,132.82,0.05609593]
[1725303049844,11.57,132.83,132.74,1.4503]
[1725303050048,15.24800948,132.83,132.75,11.57]
[1725303050346,3.7647,132.82,132.79,3.7655]
[1725303050550,15.30334337,132.83,132.79,3.7655]
[1725303050751,0.05363771,132.82,132.8,0.05453985]
[1725303051045,11.62363771,132.82,132.8,0.05453985]
[1725303051354,3.7649,132.81,132.8,0.05453985]
[1725303054449,0.05363771,132.82,132.8,3.81973985]
[1725303056257,3.81843771,132.82,132.8,0.05453985]
[1725303057755,0.05363771,132.82,132.8,0.05453985]
[1725303057959,3.7649,132.81,132.8,0.05453985]
[1725303058370,3.81843771,132.82,132.8,0.05453985]
[1725303059062,0.05363771,132.82,132.8,3.81973985]
[1725303061065,0.05363771,132.82,132.81,3.7649]
[1725303061366,3.7633,132.87,132.83,3.7641]
[1725303061568,19.05006594,132.87,132.8,12.9671]
[1725303061772,19.05006594,132.87,132.81,1.4131]
[1725303062072,19.05006594,132.87,132.83,3.7642]
[1725303062459,3.81764898,132.86,132.84,0.05363887]
[1725303062662,11.62404898,132.86,132.84,0.05363887]
[1725303063766,0.05404898,132.86,132.84,0.05363887]
[1725303064565,0.05404898,132.86,132.84,3.81743887]
[1725303072175,11.57,132.91,132.84,11.62363887]
[1725303072470,11.57,132.91,132.84,11.57]
[1725303072471,3.74614168,132.9,132.84,11.57]
[1725303072866,15.3322,132.91,132.84,11.57]
[1725303073069,3.7622,132.91,132.88,3.7628]
[1725303073269,3.81029982,132.91,132.88,3.81590713]
[1725303073576,3.81029982,132.91,132.89,3.7626]
[1725303074567,0.04809982,132.91,132.89,3.7626]
[1725303074969,3.81029982,132.91,132.89,3.7626]
[1725303075168,15.38029982,132.91,132.88,3.81590713]
[1725303077572,0.04809982,132.91,132.89,3.7624]
[1725303078672,3.81019982,132.91,132.89,3.7624]
[1725303079773,0.04809982,132.91,132.89,3.7624]
[1725303081180,0.04809982,132.91,132.9,3.7624]
[1725303082772,0.04809982,132.91,132.88,0.05310713]
[1725303082971,0.04809982,132.91,132.89,3.7625]
[1725303083174,0.04809982,132.91,132.88,0.05310713]
[1725303083381,11.57,132.9,132.88,0.05310713]
[1725303084382,11.57,132.9,132.88,3.81590713]
[1725303087080,3.81029982,132.91,132.89,3.7626]
[1725303087081,0.04809982,132.91,132.89,3.7626]
[1725303087275,0.04809982,132.91,132.88,0.05310713]
[1725303087484,0.04809982,132.91,132.88,11.62310713]
[1725303087680,0.04809982,132.91,132.9,15.3324]
[1725303087879,3.761,132.95,132.9,11.57]
[1725303088081,3.82556651,132.97,132.91,11.57]
[1725303088287,3.7605,132.97,132.93,3.7613]
[1725303088486,3.75300921,132.96,132.92,1.4578]
[1725303088880,0.04823522,132.95,132.94,3.7612]
[1725303092383,7.47538935,132.99,132.93,28.94383625]
[1725303092891,3.7598,133.0,132.96,3.7605]
[1725303093084,30.1637,133.04,132.95,28.89]
[1725303093388,30.1637,133.04,132.94,1.3389]
[1725303093389,0.05226071,133.01,133.0,3.7594]
[1725303094480,3.7585,133.04,133.01,3.7592]
[1725303095177,28.89,133.06,133.0,3.7595]
[1725303095380,28.89,133.04,132.95,28.89]
[1725303095600,0.04975564,133.01,132.98,0.0529432]
[1725303096294,3.80905564,133.01,132.98,3.8128432]
[1725303097093,3.7595,133.0,132.98,0.0529432]
[1725303097982,0.04975564,133.01,132.98,0.0529432]
[1725303098184,3.80915564,133.01,132.98,0.0529432]
[1725303098889,3.80915564,133.01,132.98,3.8130432]
[1725303099490,3.7596,133.0,132.98,0.0529432]
[1725303099688,0.04975564,133.01,132.98,0.0529432]
[1725303100090,3.7598,132.99,132.98,0.0529432]
[1725303100491,28.89,133.0,132.92,1.3624]
[1725303100694,28.89,132.97,132.92,1.3624]
[1725303100901,28.89,132.99,132.92,1.3624]
[1725303101200,3.7606,132.97,132.93,3.7612]
[1725303101689,0.04942267,132.96,132.94,3.81649845]
[1725303102401,0.04942267,132.96,132.94,0.05539845]
[1725303104088,3.81032267,132.96,132.94,0.05539845]
[1725303104484,0.04942267,132.96,132.9,3.7622]
[1725303105097,3.82127275,132.95,132.9,3.7622]
[1725303105296,3.7614,132.94,132.9,3.7622]
[1725303105600,3.82127275,132.95,132.9,3.7622]
[1725303105798,0.05056977,132.93,132.91,0.04862498]
[1725303106193,3.7618,132.92,132.91,0.04862498]
[1725303110388,3.7628,132.89,132.86,1.3258]
[1725303110795,3.7628,132.89,132.86,3.7635]
[1725303111196,3.7628,132.89,132.85,3.7636]
[1725303111397,0.05094457,132.88,132.86,0.05192089]
[1725303113700,0.05094457,132.88,132.87,28.89]
[1725303113893,3.7626,132.9,132.87,30.2106]
[1725303114399,3.7626,132.9,132.87,33.9736]
[1725303114897,3.81767121,132.9,132.87,33.9736]
[1725303115196,0.05507121,132.9,132.86,0.05192089]
[1725303115904,3.7628,132.89,132.86,3.81522089]
[1725303116091,0.05507121,132.9,132.87,28.89]
[1725303116297,3.7614,132.94,132.9,3.7622]
[1725303117498,0.04765532,132.93,132.91,0.05300283]
[1725303119095,3.7618,132.92,132.91,0.05300283]
[1725303121299,3.80925532,132.93,132.91,0.05300283]
[1725303122097,0.04765532,132.93,132.91,0.05300283]
[1725303122797,3.80935532,132.93,132.91,0.05300283]
[1725303123402,3.80935532,132.93,132.91,3.81510283]
[1725303123797,0.04765532,132.93,132.91,3.81510283]
[1725303125200,3.80915532,132.93,132.91,3.81510283]
[1725303125404,3.80915532,132.93,132.91,0.05300283]
[1725303125595,3.7618,132.92,132.91,0.05300283]
[1725303125997,0.04765532,132.93,132.91,0.05300283]
[1725303126502,3.80945532,132.93,132.91,0.05300283]
[1725303126700,0.04765532,132.93,132.91,0.05300283]
[1725303126899,3.7618,132.92,132.91,0.05300283]
[1725303128804,3.7618,132.92,132.9,3.7623]
[1725303128805,3.7628,132.89,132.83,32.72559066]
[1725303129009,3.7628,132.89,132.83,3.83559066]
[1725303129310,3.7628,132.89,132.81,31.5771]
[1725303129507,3.7628,132.89,132.81,35.40357302]
[1725303129702,3.8197005,132.89,132.81,35.40357302]
[1725303129910,0.05268495,132.86,132.84,0.05008328]
[1725303130410,0.05268495,132.86,132.85,3.7638]
[1725303130614,0.05268495,132.86,132.84,0.05008328]
[1725303132510,3.81628495,132.86,132.84,0.05008328]
[1725303133903,3.7638,132.85,132.84,0.05008328]
[1725303134104,3.80429055,132.85,132.76,7.98128855]
[1725303134311,28.89,132.83,132.76,4.2741]
[1725303134506,3.7648,132.82,132.78,3.7656]
[1725303134709,28.89,132.83,132.78,3.7656]
[1725303135222,28.89,132.83,132.79,0.05258784]
[1725303135223,0.0564791,132.82,132.79,0.05258784]
[1725303136033,3.7652,132.8,132.79,0.05258784]
[1725303141140,7.44130512,132.8,132.79,0.05258784]
[1725303144039,3.7652,132.8,132.79,0.05258784]
[1725303145137,3.765,132.81,132.79,3.81808784]
[1725303145339,3.765,132.81,132.79,0.05258784]
[1725303145539,28.9464791,132.82,132.79,0.05258784]
[1725303146043,3.7649,132.81,132.79,0.05258784]
[1725303146542,28.9464791,132.82,132.79,0.05258784]
[1725303146730,3.7652,132.8,132.79,0.05258784]
[1725303146933,7.55860483,132.8,132.79,0.05258784]
[1725303151453,3.7652,132.8,132.79,0.05258784]
[1725303151646,0.0564791,132.82,132.79,0.05258784]
[1725303151953,0.0564791,132.82,132.8,3.765]
[1725303153346,3.8211791,132.82,132.8,3.765]
[1725303156447,0.0564791,132.82,132.8,3.765]
[1725303158954,0.0564791,132.82,132.81,3.7649]
[1725303160243,0.0564791,132.82,132.8,3.7652]
[1725303163355,28.89,132.81,132.79,0.05258784]
[1725303164450,28.89,132.81,132.79,3.81798784]
[1725303164658,28.89,132.81,132.79,0.05258784]
[1725303165856,32.655,132.81,132.79,0.05258784]
[1725303166453,28.89,132.81,132.79,3.81798784]
[1725303167258,28.89,132.81,132.8,3.7652]
[1725303167651,32.6549,132.81,132.79,0.05258784]
[1725303168956,32.6552,132.8,132.79,0.05258784]
[1725303169158,32.6844306,132.8,132.73,4.1985]
[1725303169650,3.7655,132.79,132.77,3.766]
[1725303170559,3.81781562,132.79,132.77,0.04847925]
[1725303173063,3.81781562,132.79,132.77,3.81447925]
[1725303174067,11.58,132.78,132.77,3.81447925]
[1725303175867,11.58,132.78,132.77,0.04847925]
[1725303180066,0.05231562,132.79,132.77,3.81447925]
[1725303180265,11.58,132.78,132.77,3.81447925]
[1725303181361,3.6940158,132.87,132.77,11.62847925]
[1725303181670,11.58,132.84,132.77,11.58]
[1725303181858,18.21538837,132.98,132.73,46.32]
[1725303182058,294.31255445,133.04,132.85,11.58]
[1725303182059,2.3414,132.95,132.85,11.58]
[1725303182261,11.58,132.93,132.85,11.58]
[1725303182462,11.58,132.93,132.9,3.7622]
[1725303182671,15.43856161,132.93,132.9,3.7622]
[1725303182865,11.62839524,132.93,132.9,3.7622]
[1725303184064,0.04839524,132.93,132.9,3.7622]
[1725303186171,0.04839524,132.93,132.91,3.762]
[1725303186469,0.04839524,132.93,132.91,3.81723248]
[1725303188666,0.04839524,132.93,132.91,0.05523248]
[1725303190065,3.81009524,132.93,132.91,0.05523248]
[1725303190265,32.68009524,132.93,132.91,0.05523248]
[1725303194176,3.7618,132.92,132.91,0.05523248]
[1725303197372,28.91839524,132.93,132.91,0.05523248]
[1725303197675,0.04839524,132.93,132.91,0.05523248]
[1725303198081,0.04839524,132.93,132.92,3.7618]
[1725303199376,3.6928969,132.99,132.97,3.7603]
[1725303199576,28.87,133.0,132.97,3.7603]
[1725303200079,36.35533402,133.0,132.97,3.7603]
[1725303200278,32.59563402,133.0,132.96,3.7606]
[1725303200479,0.05055613,132.99,132.97,0.04812241]
[1725303200972,3.81035613,132.99,132.97,0.04812241]
[1725303201381,0.05055613,132.99,132.97,3.80832241]
[1725303202678,3.81035613,132.99,132.97,3.80832241]
[1725303204084,3.81035613,132.99,132.97,0.04812241]
[1725303206993,32.6301,132.98,132.97,0.04812241]
[1725303212890,3.7612,132.95,132.9,1.4432]
[1725303213589,3.7612,132.95,132.92,3.7616]
[1725303214093,3.81823727,132.95,132.92,3.81683695]
[1725303214385,3.81823727,132.95,132.93,3.7615]
[1725303217394,3.81823727,132.95,132.92,3.81693695]
[1725303217886,11.61703727,132.95,132.92,3.81693695]
[1725303218493,15.37813727,132.95,132.92,3.81693695]
[1725303219990,3.7612,132.94,132.92,3.81693695]
[1725303220895,3.7612,132.94,132.92,0.05523695]
[1725303221889,19.06557582,132.93,132.92,0.05523695]
[1725303222096,15.3215,132.93,132.92,0.05523695]
[1725303222686,19.11484988,132.93,132.92,0.05523695]
[1725303228895,0.05703727,132.95,132.92,0.05523695]
[1725303229093,0.05703727,132.95,132.94,3.7612]
[1725303247719,0.05703727,132.95,132.92,0.05523695]
[1725303250425,0.05703727,132.95,132.93,3.7613]
[1725303252627,0.05703727,132.95,132.92,3.81693695]
[1725303252628,3.81813727,132.95,132.92,3.81693695]
[1725303254225,0.05703727,132.95,132.93,3.7615]
[1725303255126,3.81803727,132.95,132.93,3.7615]
[1725303257331,3.81803727,132.95,132.92,3.81693695]
[1725303260729,3.7613,132.94,132.92,0.05523695]
[1725303261923,3.7615,132.93,132.92,0.05523695]
[1725303262228,3.7615,132.93,132.87,7.96236216]
[1725303262229,11.56,132.93,132.75,13.90032227]
[1725303262432,11.56,132.91,132.85,11.56]
[1725303262624,3.7624,132.9,132.85,11.56]
[1725303263331,0.05293945,132.89,132.87,3.7632]
[1725303263723,0.05293945,132.89,132.88,3.7629]
[1725303273839,0.05293945,132.89,132.86,0.04769192]
[1725303274745,0.05293945,132.89,132.86,11.60769192]
[1725303275434,0.05293945,132.89,132.88,3.7629]
[1725303283236,3.84386756,132.94,132.93,3.7615]
[1725303283449,15.3208,132.96,132.93,3.7615]
[1725303283450,3.7397487,132.95,132.93,3.7615]
[1725303284342,3.78727732,132.95,132.93,3.80912563]
[1725303285143,3.78727732,132.95,132.94,15.3212]
[1725303285144,0.04752862,132.95,132.94,15.3212]
[1725303285459,0.04752862,132.95,132.94,19.01637791]
[1725303285740,100.04370301,133.02,132.98,3.7599]
[1725303285945,3.66809599,133.02,132.98,3.7599]
[1725303286144,15.7557,133.03,132.98,3.7599]
[1725303286340,3.759,133.02,132.98,3.7599]
[1725303286549,3.90416075,133.01,132.99,0.05163516]
[1725303289252,228.848266,133.14,133.0,11.56]
[1725303289450,14.3583,133.08,133.0,11.56]
[1725303289644,18.09824134,133.08,133.02,3.7588]
[1725303290047,3.7579,133.06,133.0,11.56]
[1725303290552,0.0527147,133.04,133.02,0.05336096]
[1725303290851,0.0527147,133.04,133.03,3.7587]
[1725303297252,0.0527147,133.04,133.03,15.3187]
[1725303304157,0.0527147,133.04,133.03,3.7587]
[1725303318084,0.0527147,133.04,133.02,0.05336096]
[1725303318977,3.8112147,133.04,133.02,0.05336096]
[1725303319885,3.7587,133.03,133.02,0.05336096]
[1725303320386,3.7587,133.03,132.94,1.3414]
[1725303320387,3.7593,133.01,132.94,1.3414]
[1725303320577,11.56,133.01,132.95,11.56]
[1725303320883,15.36853942,133.01,132.95,11.56]
[1725303321188,3.7598,132.99,132.95,15.3208]
[1725303321391,0.04909177,132.98,132.96,11.61674181]
[1725303321687,0.04909177,132.98,132.96,15.37724181]
[1725303324188,0.04909177,132.98,132.96,3.81724181]
[1725303324389,0.04909177,132.98,132.96,15.37724181]
[1725303330197,0.04909177,132.98,132.96,11.61674181]
[1725303330391,0.04909177,132.98,132.96,0.05674181]
[1725303331787,0.04909177,132.98,132.96,3.81724181]
[1725303336695,0.04909177,132.98,132.96,0.05674181]
[1725303336885,3.80929177,132.98,132.96,0.05674181]
[1725303339691,3.7604,132.97,132.96,0.05674181]
[1725303340296,15.3204,132.97,132.96,0.05674181]
[1725303340599,3.7611,132.95,132.91,15.2597067]
[1725303340894,11.56,132.97,132.92,3.7616]
[1725303341399,3.81653462,132.96,132.93,3.81321202]